bitfinex/quotes_ETHUSD_20250711
["timestamp","ask_amount","ask_price","bid_price","bid_amount"]
[1752276069984,0.4960327,2952.8,2952.6,5.222]
[1752276070185,0.4537,2952.7,2952.6,5.222]
[1752276071732,1.0037,2952.7,2952.6,5.222]
[1752276072032,1.3366,2952.6,2952.3,8.115]
[1752276072199,13.01589883,2952.6,2952.5,5.224]
[1752276072405,12.97356327,2952.6,2952.5,5.224]
[1752276073218,20.97356327,2952.6,2952.5,5.224]
[1752276073435,20.18696327,2952.6,2952.5,5.224]
[1752276073596,9.0037,2952.6,2952.5,5.224]
[1752276074296,1.0037,2952.6,2952.5,5.224]
[1752276077119,9.0037,2952.6,2952.5,5.224]
[1752276079949,8.55,2952.6,2952.5,5.224]
[1752276080146,0.55,2952.6,2952.5,5.224]
[1752276080326,1.0173,2952.6,2952.5,5.224]
[1752276080721,0.55,2952.6,2952.5,5.224]
[1752276084584,1.0173,2952.6,2952.5,5.224]
[1752276087357,0.55,2952.6,2952.5,5.224]
[1752276088499,1.0173,2952.6,2952.5,5.224]
[1752276097080,0.55,2952.6,2952.5,5.224]
[1752276097320,0.001,2952.7,2952.5,5.9865]
[1752276097686,0.001,2952.7,2952.6,0.1688]
[1752276098003,0.001,2952.7,2952.6,0.1844]
[1752276098597,0.001,2952.7,2952.6,0.1688]
[1752276098921,0.001,2952.7,2952.6,0.9469]
[1752276105805,0.001,2952.7,2952.6,10.9469]
[1752276106913,0.001,2952.7,2952.6,11.4969]
[1752276115059,0.001,2952.7,2952.6,18.74618959]
[1752276119240,0.001,2952.7,2952.6,22.96418959]
[1752276121612,0.001,2953.3,2953.2,18.05318959]
[1752276121763,0.001,2953.3,2953.2,23.26818959]
[1752276121958,0.001,2953.3,2953.2,23.43698959]
[1752276122972,0.001,2953.3,2953.2,23.45258959]
[1752276129684,0.001,2953.3,2953.2,23.43698959]
[1752276129926,0.001,2953.9,2953.4,0.7587]
[1752276130232,0.001,2953.9,2953.3,0.55]
[1752276130233,0.001,2953.9,2953.8,8.17678959]
[1752276130533,0.001,2953.9,2953.8,21.50078959]
[1752276131248,0.001,2953.9,2953.8,31.50078959]
[1752276133008,0.001,2953.9,2953.8,31.74870734]
[1752276136932,0.001,2953.9,2953.8,32.29870734]
[1752276137148,0.001,2954.2,2954.0,0.7587]
[1752276137347,0.001,2954.3,2954.2,18.00798959]
[1752276137510,0.001,2954.3,2954.2,18.17678959]
[1752276138031,0.001,2954.3,2954.2,18.19238959]
[1752276139677,0.001,2954.5,2954.2,18.19238959]
[1752276139678,0.001,2955.2,2954.3,1.3735]
[1752276139815,0.001,2955.2,2954.8,17.24928959]
[1752276140017,0.001,2955.2,2954.8,22.62908959]
[1752276140367,0.4415,2955.1,2954.8,22.62908959]
[1752276140720,0.4425,2954.9,2954.8,22.62908959]
[1752276142357,0.001,2954.9,2954.8,22.62908959]
[1752276144940,0.4425,2954.9,2954.8,22.62908959]
[1752276145436,1.2746,2954.9,2954.8,0.1688]
[1752276145641,1.2746,2954.9,2954.8,5.3778]
[1752276146539,1.2746,2954.9,2954.8,0.1688]
[1752276146742,0.8321,2954.8,2954.6,4.3848]
[1752276146952,0.8321,2954.8,2954.7,5.209]
[1752276147731,1.2736,2954.8,2954.7,5.209]
[1752276150744,0.4415,2954.8,2954.7,5.209]
[1752276152944,0.001,2954.9,2954.7,5.209]
[1752276153148,0.4425,2954.9,2954.8,0.1688]
[1752276155846,1.1933,2954.9,2954.8,5.3758]
[1752276157683,1.1933,2954.9,2954.8,13.4838]
[1752276162484,0.4425,2954.9,2954.8,13.4838]
[1752276162784,0.001,2954.9,2954.8,13.4838]
[1752276163084,0.001,2954.9,2954.8,13.4994]
[1752276163384,0.001,2954.9,2954.8,13.4838]
[1752276165753,0.001,2954.9,2954.8,14.2622]
[1752276167175,0.001,2954.9,2954.8,24.2622]
[1752276167581,0.001,2954.9,2954.8,24.2778]
[1752276168111,0.001,2954.9,2954.8,24.8122]
[1752276168315,0.001,2954.9,2954.8,24.8278]
[1752276168755,0.001,2954.9,2954.8,32.06560545]
[1752276170869,0.001,2954.9,2954.8,31.49700545]
[1752276171977,0.001,2954.9,2954.8,18.2768]
[1752276172179,0.4402,2954.9,2954.8,23.4808]
[1752276173893,0.001,2954.9,2954.8,23.4808]
[1752276174764,0.4402,2954.9,2954.8,23.4808]
[1752276174962,0.4402,2954.9,2954.8,27.6958]
[1752276175197,0.001,2954.9,2954.8,27.6958]
[1752276177403,0.001,2954.9,2954.8,38.55754585]
[1752276179806,0.4402,2954.9,2954.8,22.4918]
[1752276180117,0.4402,2954.9,2954.8,27.6938]
[1752276183119,0.4402,2954.9,2954.8,12.4918]
[1752276183319,0.4402,2954.9,2954.8,17.6938]
[1752276185799,0.4402,2954.9,2954.8,17.6928]
[1752276195009,0.4402,2954.9,2954.8,13.4778]
[1752276198944,0.001,2954.9,2954.8,13.4778]
[1752276199541,0.001,2954.9,2954.8,24.2806]
[1752276200335,0.001,2954.9,2954.8,24.2962]
[1752276203351,0.001,2954.9,2954.8,24.8462]
[1752276210932,0.001,2954.9,2954.8,24.8306]
[1752276211161,0.001,2954.9,2954.8,24.8462]
[1752276211732,0.001,2954.9,2954.8,16.7382]
[1752276214467,0.001,2954.9,2954.8,16.7226]
[1752276214831,0.001,2954.9,2954.8,16.7382]
[1752276215032,0.001,2954.9,2954.8,29.0592]
[1752276215983,0.001,2954.9,2954.8,29.0436]
[1752276217053,0.001,2954.9,2954.8,19.0776]
[1752276217290,0.4415,2954.9,2954.8,23.4698]
[1752276217657,1.2535,2954.9,2954.8,8.2748]
[1752276217989,1.2535,2954.9,2954.8,13.4688]
[1752276222711,1.2535,2954.9,2954.8,8.106]
[1752276223199,1.2535,2954.9,2954.8,13.3]
[1752276226419,1.84580261,2954.9,2954.8,8.106]
[1752276226694,2.7546765,2954.9,2954.8,13.3]
[1752276227074,2.7546765,2954.9,2954.8,8.106]
[1752276227272,2.7546765,2954.9,2954.8,13.3]
[1752276227988,1.2535,2954.9,2954.8,13.3]
[1752276234114,0.4415,2954.9,2954.8,13.3]
[1752276234780,0.001,2954.9,2954.8,20.5429363]
[1752276235374,0.001,2954.9,2954.8,21.3598363]
[1752276236005,0.001,2954.9,2954.8,31.3598363]
[1752276236826,0.001,2954.9,2954.8,24.1169]
[1752276237330,0.001,2954.9,2954.8,18.9229]
[1752276237612,0.44,2954.9,2954.8,23.299]
[1752276238804,0.001,2954.9,2954.8,23.299]
[1752276241118,0.44,2954.9,2954.8,23.299]
[1752276241998,0.001,2954.9,2954.8,23.299]
[1752276242199,0.001,2954.9,2954.8,23.3146]
[1752276242400,0.001,2954.9,2954.8,24.1229]
[1752276242725,0.001,2954.9,2954.8,24.1385]
[1752276246452,0.001,2954.9,2954.8,28.3535]
[1752276246632,0.001,2954.9,2954.8,28.3379]
[1752276247403,0.001,2954.9,2954.8,28.3535]
[1752276249309,0.001,2954.9,2954.8,28.9035]
[1752276250540,0.001,2954.9,2954.8,28.8879]
[1752276256917,0.001,2954.9,2954.8,36.12614863]
[1752276265928,0.001,2955.2,2954.9,10.55]
[1752276266134,0.001,2955.2,2955.1,7.23824863]
[1752276266469,0.001,2955.2,2955.1,7.40704863]
[1752276270546,0.001,2955.2,2955.1,7.66009777]
[1752276273938,0.43,2955.2,2955.1,7.66009777]
[1752276274955,0.001,2955.2,2955.1,7.66009777]
[1752276277866,0.43,2955.2,2955.1,7.66009777]
[1752276280086,0.43,2955.2,2955.1,15.76509777]
[1752276281185,0.43,2955.2,2955.1,8.52684914]
[1752276281186,0.001,2955.2,2955.1,8.52684914]
[1752276281383,1.2074,2955.2,2955.1,23.4568]
[1752276283207,0.001,2955.2,2955.1,23.4568]
[1752276283532,0.43,2955.2,2955.1,23.4568]
[1752276283664,0.001,2955.2,2955.1,23.4568]
[1752276283862,0.43,2955.2,2955.1,23.4568]
[1752276284308,0.001,2955.2,2955.1,23.4568]
[1752276284906,0.001,2955.2,2955.1,27.6718]
[1752276285668,0.43,2955.2,2955.1,27.6718]
[1752276294500,0.43,2955.2,2955.1,23.4568]
[1752276296590,0.43,2955.2,2955.1,18.2738]
[1752276296824,0.43,2955.2,2955.1,23.4538]
[1752276298935,0.43,2955.2,2955.1,18.2738]
[1752276299254,0.43,2955.2,2955.1,23.4538]
[1752276300517,0.001,2955.2,2955.1,23.4538]
[1752276300712,0.001,2955.2,2955.1,24.2194]
[1752276302502,0.001,2955.2,2955.1,23.4538]
[1752276302831,0.4706,2955.2,2955.1,23.4538]
[1752276311372,0.001,2955.2,2955.1,23.4538]
[1752276311651,0.001,2955.2,2955.1,24.2138]
[1752276311949,0.4706,2955.2,2955.1,23.4538]
[1752276312778,0.001,2955.2,2955.1,23.4538]
[1752276313490,0.4706,2955.2,2955.1,23.4538]
[1752276314278,0.001,2955.2,2955.1,23.4538]
[1752276317725,78.46739208,2955.7,2955.2,10.55]
[1752276317924,78.46739208,2955.7,2955.6,17.23824863]
[1752276318162,78.92179208,2955.7,2955.6,22.75035709]
[1752276318537,78.92179208,2955.7,2955.6,30.85635709]
[1752276318742,78.46739208,2955.7,2955.6,30.85635709]
[1752276319182,78.46739208,2955.7,2955.6,30.68904863]
[1752276319364,80.15179208,2955.7,2955.6,30.68904863]
[1752276320663,81.38179208,2955.7,2955.6,30.68904863]
[1752276322065,82.61179208,2955.7,2955.6,30.68904863]
[1752276322473,83.37459208,2955.7,2955.6,30.68904863]
[1752276323577,84.60459208,2955.7,2955.6,30.68904863]
[1752276325055,85.83459208,2955.7,2955.6,30.68904863]
[1752276326365,90.47529144,2955.7,2955.6,13.4508]
[1752276328169,91.70529144,2955.7,2955.6,13.4508]
[1752276329692,92.93529144,2955.7,2955.6,13.4508]
[1752276331560,94.16529144,2955.7,2955.6,13.4508]
[1752276332162,90.75459208,2955.7,2955.6,13.4508]
[1752276332762,91.98459208,2955.7,2955.6,13.4508]
[1752276334059,93.21459208,2955.7,2955.6,13.4508]
[1752276335390,94.44459208,2955.7,2955.6,13.4508]
[1752276336801,95.67459208,2955.7,2955.6,13.4508]
[1752276336975,99.08529144,2955.7,2955.6,13.4468]
[1752276337367,95.67459208,2955.7,2955.6,13.4468]
[1752276338504,96.90459208,2955.7,2955.6,13.4468]
[1752276340204,96.90459208,2955.7,2955.6,20.68504863]
[1752276340205,97.37179208,2955.7,2955.6,20.68504863]
[1752276341501,98.14739208,2955.7,2955.6,20.68504863]
[1752276341815,98.60179208,2955.7,2955.6,20.68504863]
[1752276342023,98.14739208,2955.7,2955.6,20.68504863]
[1752276342173,97.74215255,2955.7,2955.6,20.68504863]
[1752276343083,91.021,2955.7,2955.6,30.68504863]
[1752276343285,87.19315652,2955.7,2955.6,31.46194863]
[1752276344288,88.42315652,2955.7,2955.6,31.46194863]
[1752276344490,88.42315652,2955.7,2955.6,31.44634863]
[1752276345613,89.65315652,2955.7,2955.6,31.44634863]
[1752276345816,89.65315652,2955.7,2955.6,26.27434863]
[1752276346029,94.28195588,2955.7,2955.6,8.106]
[1752276346173,94.28195588,2955.7,2955.6,13.276]
[1752276347131,95.51195588,2955.7,2955.6,13.276]
[1752276348297,92.10125652,2955.7,2955.6,13.276]
[1752276348499,93.33125652,2955.7,2955.6,13.276]
[1752276350732,94.56125652,2955.7,2955.6,13.276]
[1752276352316,95.79125652,2955.7,2955.6,13.276]
[1752276354428,97.02125652,2955.7,2955.6,13.276]
[1752276355944,97.02125652,2955.7,2955.6,13.4448]
[1752276356153,98.25125652,2955.7,2955.6,13.4448]
[1752276357936,98.71755652,2955.7,2955.6,13.4448]
[1752276358293,98.26315652,2955.7,2955.6,13.4448]
[1752276359293,99.49315652,2955.7,2955.6,13.4448]
[1752276359802,99.92835652,2955.7,2955.6,13.4448]
[1752276361332,101.15835652,2955.7,2955.6,13.4448]
[1752276362515,102.38835652,2955.7,2955.6,13.4448]
[1752276364550,103.61835652,2955.7,2955.6,13.4448]
[1752276366754,104.41315652,2955.7,2955.6,13.4448]
[1752276367129,104.84835652,2955.7,2955.6,13.4448]
[1752276368153,106.07835652,2955.7,2955.6,13.4448]
[1752276369435,107.30835652,2955.7,2955.6,13.4448]
[1752276371458,108.53835652,2955.7,2955.6,13.4448]
[1752276373080,109.76835652,2955.7,2955.6,13.4448]
[1752276374482,110.99835652,2955.7,2955.6,13.4448]
[1752276376043,110.99835652,2955.7,2955.6,13.4398]
[1752276376044,112.99625652,2955.7,2955.6,13.4398]
[1752276377081,112.22835652,2955.7,2955.6,13.4398]
[1752276377473,113.45835652,2955.7,2955.6,13.4398]
[1752276378890,114.15065197,2955.7,2955.6,8.2748]
[1752276379108,115.38065197,2955.7,2955.6,13.4388]
[1752276380686,116.61065197,2955.7,2955.6,13.4388]
[1752276381058,101.07953899,2955.7,2955.6,24.1895]
[1752276381255,101.07953899,2955.7,2955.6,29.60043737]
[1752276381456,101.07953899,2955.7,2955.6,18.1216]
[1752276381706,101.07953899,2955.7,2955.6,23.272]
[1752276382074,101.9043478,2955.7,2955.6,23.272]
[1752276383504,103.1343478,2955.7,2955.6,23.272]
[1752276383879,103.1343478,2955.7,2955.6,30.51024863]
[1752276385412,104.3643478,2955.7,2955.6,30.51024863]
[1752276386645,105.5943478,2955.7,2955.6,30.51024863]
[1752276386937,105.5943478,2955.7,2955.6,31.34184863]
[1752276388430,106.8243478,2955.7,2955.6,31.34184863]
[1752276389743,108.0543478,2955.7,2955.6,31.34184863]
[1752276389905,107.24396066,2955.7,2955.6,31.34184863]
[1752276390318,107.24396066,2955.7,2955.6,23.269]
[1752276390535,107.67696066,2955.7,2955.6,23.269]
[1752276391004,107.24396066,2955.7,2955.6,23.269]
[1752276391205,108.47396066,2955.7,2955.6,23.4378]
[1752276392177,108.06876386,2955.7,2955.6,23.4378]
[1752276392534,109.29876386,2955.7,2955.6,23.4378]
[1752276393382,109.73176386,2955.7,2955.6,23.4378]
[1752276394025,110.96176386,2955.7,2955.6,23.4378]
[1752276395623,112.19176386,2955.7,2955.6,23.4378]
[1752276395824,112.19176386,2955.7,2955.6,13.4378]
[1752276396682,112.19176386,2955.7,2955.6,31.49834863]
[1752276396683,111.75876386,2955.7,2955.6,31.49834863]
[1752276396918,111.75876386,2955.7,2955.6,31.89514863]
[1752276396919,102.96373029,2955.7,2955.6,31.89514863]
[1752276397211,102.96373029,2955.7,2955.6,35.45514863]
[1752276397357,102.96373029,2955.7,2955.6,31.89514863]
[1752276397959,102.15350945,2955.7,2955.6,31.89514863]
[1752276398185,103.38350945,2955.7,2955.6,31.89514863]
[1752276399464,104.61350945,2955.7,2955.6,31.89514863]
[1752276399663,96.17037219,2955.7,2955.6,31.89514863]
[1752276401097,97.40037219,2955.7,2955.6,21.33354863]
[1752276401302,97.40037219,2955.7,2955.6,31.33354863]
[1752276401667,97.40037219,2955.7,2955.6,30.51124863]
[1752276401886,97.83437219,2955.7,2955.6,20.51124863]
[1752276402091,97.42921862,2955.7,2955.6,30.51124863]
[1752276402315,98.65921862,2955.7,2955.6,30.51124863]
[1752276404218,99.88921862,2955.7,2955.6,30.51124863]
[1752276406186,0.8309,2955.6,2954.6,1.00069748]
[1752276406381,0.8309,2955.4,2954.7,13.271]
[1752276406621,0.07420208,2955.4,2954.8,10.0]
[1752276406821,0.433,2955.3,2954.8,10.0]
[1752276407330,0.433,2955.3,2955.2,0.1688]
[1752276407484,0.433,2955.3,2955.2,5.3368]
[1752276408984,100.68621862,2955.7,2955.2,5.3368]
[1752276409201,0.4285,2955.3,2955.2,0.1688]
[1752276409400,0.4285,2955.3,2955.2,5.171]
[1752276409610,1.2594,2955.3,2955.2,5.3398]
[1752276410325,1.2594,2955.3,2955.2,0.1648]
[1752276411380,1.2594,2955.3,2955.2,5.3358]
[1752276412110,0.85410343,2955.3,2955.2,5.3358]
[1752276417425,0.4285,2955.3,2955.2,5.3358]
[1752276422365,1.9834,2955.6,2955.2,5.3358]
[1752276422566,2.8885,2955.6,2955.2,5.36963865]
[1752276422744,0.4285,2955.5,2955.2,5.171]
[1752276423232,0.4285,2955.5,2955.4,0.1688]
[1752276423643,2.46,2955.6,2955.4,0.1688]
[1752276423834,2.46,2955.6,2955.5,5.167]
[1752276424153,4.1185,2955.6,2955.5,5.167]
[1752276424361,3.69,2955.6,2955.5,5.167]
[1752276425359,4.92,2955.6,2955.5,5.167]
[1752276427073,6.15,2955.6,2955.5,5.167]
[1752276427274,6.5785,2955.6,2955.5,13.273]
[1752276428382,7.8085,2955.6,2955.5,13.273]
[1752276429760,9.0385,2955.6,2955.5,13.273]
[1752276431392,10.2685,2955.6,2955.5,13.273]
[1752276431597,14.46619936,2955.6,2955.5,13.27]
[1752276432790,15.69619936,2955.6,2955.5,13.27]
[1752276433155,11.857,2955.6,2955.5,13.27]
[1752276433359,12.2855,2955.6,2955.5,13.27]
[1752276434080,13.5155,2955.6,2955.5,13.27]
[1752276434966,13.5155,2955.6,2955.5,8.106]
[1752276435166,13.5155,2955.6,2955.5,13.27]
[1752276435371,18.15619936,2955.6,2955.5,13.27]
[1752276436685,19.38619936,2955.6,2955.5,13.27]
[1752276438178,20.61619936,2955.6,2955.5,13.27]
[1752276439075,20.61619936,2955.6,2955.5,8.106]
[1752276439279,20.61619936,2955.6,2955.5,13.27]
[1752276439691,21.84619936,2955.6,2955.5,13.27]
[1752276441120,23.07619936,2955.6,2955.5,13.27]
[1752276441669,23.07619936,2955.6,2955.5,8.106]
[1752276441979,23.07619936,2955.6,2955.5,13.271]
[1752276442512,24.30619936,2955.6,2955.5,13.271]
[1752276443708,24.30619936,2955.6,2954.8,0.1708]
[1752276443709,1.47,2955.5,2955.3,8.106]
[1752276443976,1.24899545,2955.4,2955.3,8.106]
[1752276444204,1.24899545,2955.4,2955.3,13.271]
[1752276445000,1.79899545,2955.4,2955.3,13.271]
[1752276446694,1.79999545,2955.4,2955.3,13.271]
[1752276446916,4.20313487,2955.4,2955.3,13.271]
[1752276447115,4.37193487,2955.4,2955.3,13.271]
[1752276447305,4.32963942,2955.4,2955.3,13.271]
[1752276448134,4.37193487,2955.4,2955.3,13.271]
[1752276448333,1.24999545,2955.4,2955.3,13.271]
[1752276449233,1.2077,2955.4,2955.3,13.271]
[1752276449558,0.4565,2955.4,2955.3,13.271]
[1752276450341,0.4565,2955.4,2955.3,13.4398]
[1752276450957,0.001,2955.4,2955.3,13.4398]
[1752276452450,0.001,2955.4,2955.3,14.6426]
[1752276452802,0.001,2955.4,2955.3,14.2197]
[1752276458769,0.001,2955.4,2955.3,14.6426]
[1752276463798,0.001,2955.4,2955.3,9.0547]
[1752276463990,2.5476,2955.4,2955.3,8.106]
[1752276464153,2.5476,2955.4,2955.3,13.27]
[1752276464353,3.3747,2955.4,2955.3,13.27]
[1752276465260,3.3747,2955.4,2955.3,8.106]
[1752276465460,3.3715,2955.4,2955.3,8.106]
[1752276465660,3.0976,2955.4,2955.3,8.106]
[1752276465874,0.8239,2955.3,2955.1,0.002]
[1752276466061,1.25834832,2955.2,2955.1,0.002]
[1752276466271,1.71384832,2955.2,2955.1,0.002]
[1752276466945,1.71384832,2955.2,2955.1,5.166]
[1752276474497,1.71384832,2955.2,2955.1,0.002]
[1752276474673,1.71384832,2955.2,2955.1,5.167]
[1752276475076,1.71384832,2955.2,2955.1,13.275]
[1752276479104,2.26384832,2955.2,2955.1,13.275]
[1752276479422,10.26384832,2955.2,2955.1,13.275]
[1752276479620,10.22155,2955.2,2955.1,13.275]
[1752276481499,16.63589863,2955.2,2955.1,8.109]
[1752276481669,17.45659863,2955.2,2955.1,8.109]
[1752276482426,1.5395,2955.1,2955.0,8.111]
[1752276482720,3.85593961,2955.1,2955.0,13.276]
[1752276484206,11.85593961,2955.1,2955.0,13.276]
[1752276484509,11.81363986,2955.1,2955.0,13.276]
[1752276485172,0.55,2954.9,2954.8,8.111]
[1752276485372,2.6257166,2954.9,2954.8,13.276]
[1752276485680,2.6257166,2954.9,2954.8,8.109]
[1752276485681,10.32056523,2954.9,2954.8,8.109]
[1752276485890,10.27826262,2954.9,2954.8,8.109]
[1752276486284,18.27826262,2954.9,2954.8,8.109]
[1752276487094,27.47906262,2954.9,2954.8,8.109]
[1752276487298,0.55,2954.6,2954.5,8.111]
[1752276487499,18.62975554,2954.6,2954.5,8.111]
[1752276487684,1.518,2954.5,2954.4,0.002]
[1752276488009,1.9746,2954.5,2954.4,0.002]
[1752276488569,1.9746,2954.5,2954.4,5.168]
[1752276488800,3.9381932,2954.5,2954.4,5.168]
[1752276489175,0.1688,2954.5,2954.4,5.168]
[1752276490011,0.21110547,2954.7,2954.4,5.168]
[1752276492005,0.04230547,2954.7,2954.5,0.4229]
[1752276492215,0.1688,2954.9,2954.4,5.7597]
[1752276492422,0.04230404,2954.8,2954.4,5.7597]
[1752276492621,0.04230404,2954.8,2954.5,0.4229]
[1752276493643,0.04230404,2954.8,2954.6,0.4229]
[1752276493940,0.04230404,2954.8,2954.7,5.166]
[1752276494989,0.04230404,2954.8,2954.7,13.276]
[1752276496442,0.04230118,2955.0,2954.8,0.8041]
[1752276496599,0.04329832,2955.2,2954.8,1.3958]
[1752276497751,0.04329832,2955.2,2954.9,0.4229]
[1752276498061,0.04329832,2955.2,2955.0,5.166]
[1752276501473,0.5973,2955.1,2954.7,8.11]
[1752276501664,0.47080118,2955.0,2954.8,5.165]
[1752276503531,0.4285,2954.9,2954.8,5.165]
[1752276503738,0.47080261,2954.9,2954.8,5.165]
[1752276504764,0.63959975,2955.1,2954.8,5.165]
[1752276505103,0.4285,2955.0,2954.8,5.165]
[1752276505241,0.04230261,2954.9,2954.8,5.165]
[1752276506280,0.47080261,2954.9,2954.7,8.11]
[1752276506439,0.47080261,2954.9,2954.8,5.165]
[1752276507999,0.04230261,2954.9,2954.8,5.165]
[1752276508202,0.04230118,2955.0,2954.8,5.165]
[1752276508502,0.47080118,2955.0,2954.8,5.165]
[1752276508865,0.47080118,2955.0,2954.9,8.109]
[1752276509063,0.04230118,2955.0,2954.9,8.109]
[1752276509700,0.47080118,2955.0,2954.9,8.109]
[1752276512509,0.04230118,2955.0,2954.9,8.109]
[1752276515701,0.47080118,2955.0,2954.9,8.109]
[1752276517102,0.04230118,2955.0,2954.9,8.109]
[1752276526602,0.1688,2955.1,2954.9,8.109]
[1752276526799,0.1688,2955.1,2955.0,5.163]
[1752276527263,0.04329832,2955.2,2955.0,5.163]
[1752276527769,0.04329832,2955.2,2955.0,5.9488]
[1752276531641,0.04329832,2955.2,2955.0,6.1176]
[1752276532078,0.001,2955.2,2955.0,6.1176]
[1752276532284,0.04329832,2955.2,2955.0,6.1176]
[1752276533282,0.001,2955.2,2955.0,6.1176]
[1752276533459,0.04329832,2955.2,2955.0,6.1176]
[1752276534588,0.001,2955.2,2955.0,6.1176]
[1752276534802,0.04329832,2955.2,2955.0,6.1176]
[1752276535008,0.04329832,2955.2,2955.1,0.4229]
[1752276535206,0.001,2955.2,2955.1,0.4229]
[1752276535367,0.001,2955.2,2955.0,6.1176]
[1752276535572,0.001,2955.2,2955.0,6.5405]
[1752276538874,0.001,2955.2,2955.0,6.1176]
[1752276539213,0.001,2955.2,2955.0,6.5405]
[1752276540316,0.001,2955.2,2955.0,6.1176]
[1752276541312,0.001,2955.2,2955.0,5.9488]
[1752276541520,0.001,2955.2,2955.1,0.5917]
[1752276550649,0.001,2955.2,2955.1,0.1688]
[1752276553946,0.4314,2955.2,2955.1,0.1688]
[1752276554245,0.4314,2955.2,2955.1,5.16]
[1752276559159,0.001,2955.2,2955.1,5.16]
[1752276559354,0.001,2955.2,2955.1,5.3288]
[1752276566989,0.4378,2955.2,2955.1,5.16]
[1752276567280,0.48009832,2955.2,2955.1,5.16]
[1752276577027,0.48009832,2955.2,2954.9,8.2778]
[1752276577329,0.48009832,2955.2,2955.1,5.158]
[1752276577627,0.04329832,2955.2,2955.1,5.158]
[1752276578417,0.48009832,2955.2,2955.1,5.158]
[1752276581087,0.04329832,2955.2,2955.1,5.158]
[1752276581287,0.001,2955.2,2955.1,5.158]
[1752276581994,0.4378,2955.2,2955.1,5.158]
[1752276582524,1.2165,2955.2,2955.1,5.158]
[1752276585103,0.4378,2955.2,2955.1,5.158]
[1752276585629,0.001,2955.2,2955.1,5.158]
[1752276588834,0.04329832,2955.2,2955.1,5.158]
[1752276590464,0.04329832,2955.2,2955.1,13.266]
[1752276591692,0.47669832,2955.2,2955.1,13.266]
[1752276592145,1.23329832,2955.2,2955.1,13.266]
[1752276593268,0.47669832,2955.2,2955.1,13.263]
[1752276593585,0.001,2955.2,2955.1,13.263]
[1752276596793,0.4344,2955.2,2955.1,13.263]
[1752276598901,0.001,2955.2,2955.1,8.108]
[1752276599086,0.4344,2955.2,2955.1,13.263]
[1752276599604,1.2235,2955.2,2955.1,8.108]
[1752276599902,1.3923,2955.2,2955.1,13.263]
[1752276600201,1.9423,2955.2,2955.1,13.263]
[1752276600558,2.14085969,2955.2,2955.1,13.263]
[1752276602606,1.59085969,2955.2,2955.1,13.263]
[1752276602901,1.63315801,2955.2,2955.1,13.263]
[1752276603689,1.59085969,2955.2,2955.1,13.263]
[1752276604505,1.63315801,2955.2,2955.1,13.263]
[1752276605481,1.59085969,2955.2,2955.1,13.263]
[1752276607596,1.63315801,2955.2,2955.1,13.263]
[1752276615675,1.59085969,2955.2,2955.1,13.263]
[1752276616596,1.63315801,2955.2,2955.1,13.263]
[1752276617639,0.21209832,2955.2,2955.1,13.263]
[1752276618308,0.04329832,2955.2,2955.1,14.0293]
[1752276618522,0.001,2955.2,2955.1,14.4522]
[1752276618897,0.001,2955.2,2955.1,14.621]
[1752276622343,0.001,2955.2,2955.1,8.108]
[1752276622640,1.2465,2955.2,2955.1,13.26]
[1752276624336,0.4684,2955.2,2955.1,13.26]
[1752276628934,0.001,2955.2,2955.1,13.26]
[1752276632411,0.4684,2955.2,2955.1,13.26]
[1752276636159,0.001,2955.2,2955.1,14.0926]
[1752276637089,0.001,2955.2,2955.1,14.5155]
[1752276637266,0.001,2955.2,2955.1,14.6843]
[1752276647548,0.001,2955.2,2955.1,9.5323]
[1752276647771,0.001,2955.2,2955.1,14.6803]
[1752276648296,0.001,2955.2,2955.1,9.5323]
[1752276648497,0.001,2955.2,2955.1,14.2564]
[1752276650471,0.04329545,2955.4,2955.2,0.070907]
[1752276650662,0.04329545,2955.4,2955.3,5.147]
[1752276650663,2.184415,2955.4,2955.3,5.147]
[1752276650868,2.184415,2955.4,2955.2,0.070907]
[1752276651102,2.184415,2955.4,2955.3,5.147]
[1752276651808,2.642315,2955.4,2955.3,5.147]
[1752276652470,0.55,2955.3,2955.2,0.070907]
[1752276652805,1.4595515,2955.3,2955.2,0.070907]
[1752276653102,1.4595515,2955.3,2955.2,8.107]
[1752276653103,2.2337515,2955.3,2955.2,8.107]
[1752276653683,2.2337515,2955.3,2955.2,13.254]
[1752276654406,10.2337515,2955.3,2955.2,13.254]
[1752276656309,2.2337515,2955.3,2955.2,13.254]
[1752276656491,2.27604839,2955.3,2955.2,13.254]
[1752276657414,10.27604839,2955.3,2955.2,13.254]
[1752276657566,10.2337515,2955.3,2955.2,13.254]
[1752276658782,9.2258515,2955.3,2955.2,13.254]
[1752276659111,9.6837515,2955.3,2955.2,13.254]
[1752276659525,2.2337515,2955.3,2955.2,13.254]
[1752276659673,2.27604839,2955.3,2955.2,13.254]
[1752276660308,20.27604839,2955.3,2955.2,13.254]
[1752276660507,20.2337515,2955.3,2955.2,13.254]
[1752276660877,0.55,2955.0,2954.9,8.109]
[1752276661071,8.60254981,2955.0,2954.8,8.109]
[1752276661272,1.7799,2954.9,2954.8,8.109]
[1752276661816,0.772,2954.7,2954.5,0.002]
[1752276662011,0.04230691,2954.6,2954.5,0.002]
[1752276662215,0.50020691,2954.6,2954.5,0.002]